bitfinex/quotes_SOLUSD_20250803
["timestamp","ask_amount","ask_price","bid_price","bid_amount"]
[1754240459980,10.01603374,162.51,162.5,43.2]
[1754240460187,0.71,162.51,162.5,43.2]
[1754240460477,10.01603374,162.51,162.5,43.2]
[1754240461200,0.71,162.51,162.5,43.2]
[1754240461576,10.01603374,162.51,162.5,43.2]
[1754240462604,10.01603374,162.51,162.49,0.06]
[1754240462813,9.30603374,162.51,162.5,43.2]
[1754240463315,10.01603374,162.51,162.5,43.2]
[1754240467514,14.61807617,162.51,162.5,43.2]
[1754240468993,14.61807617,162.51,162.49,0.06]
[1754240469196,14.61807617,162.5,162.49,0.06]
[1754240469700,28.06466733,162.5,162.49,0.06]
[1754240469895,26.0,162.48,162.47,0.06]
[1754240470111,39.90807617,162.48,162.47,0.06]
[1754240470314,40.61807617,162.48,162.47,0.06]
[1754240471623,13.90807617,162.48,162.47,0.06]
[1754240472613,14.61807617,162.48,162.47,0.06]
[1754240472818,14.60864516,162.48,162.47,0.06]
[1754240478325,13.89864516,162.48,162.47,0.06]
[1754240479639,14.55864516,162.48,162.47,0.06]
[1754240480032,13.89864516,162.48,162.47,0.06]
[1754240480607,14.55864516,162.48,162.47,0.06]
[1754240489267,5.25261142,162.48,162.47,0.06]
[1754240489466,14.55864516,162.48,162.47,0.06]
[1754240489764,30.59261142,162.48,162.47,0.76]
[1754240489938,39.89864516,162.48,162.47,0.76]
[1754240490139,39.89864516,162.48,162.47,0.06]
[1754240490340,40.55864516,162.48,162.47,0.06]
[1754240490541,30.58331628,162.48,162.47,0.76]
[1754240490770,39.88935002,162.48,162.47,0.76]
[1754240491077,13.88935002,162.48,162.47,0.06]
[1754240491750,39.88935002,162.48,162.47,0.06]
[1754240492073,39.88935002,162.48,162.47,0.76]
[1754240493157,39.88935002,162.48,162.47,0.06]
[1754240493556,40.54935002,162.48,162.47,0.06]
[1754240496066,30.58331628,162.48,162.47,0.06]
[1754240496253,4.58331628,162.48,162.47,0.76]
[1754240499450,4.59675208,162.48,162.47,0.76]
[1754240499657,0.03,162.49,162.48,16.78468397]
[1754240499853,4.62649799,162.49,162.48,16.78468397]
[1754240500053,4.62649799,162.49,162.48,17.48468397]
[1754240500299,4.62649799,162.49,162.48,0.7]
[1754240500502,13.93253173,162.49,162.47,0.06]
[1754240500682,13.90477183,162.48,162.47,0.06]
[1754240501287,4.59873809,162.48,162.47,0.06]
[1754240501486,13.90477183,162.48,162.47,0.06]
[1754240501893,13.90477183,162.48,162.47,0.76]
[1754240502679,13.90477183,162.48,162.47,0.06]
[1754240503107,4.59873809,162.48,162.47,0.76]
[1754240503292,13.90477183,162.48,162.47,0.76]
[1754240504282,13.90477183,162.48,162.47,0.06]
[1754240505589,14.57477183,162.48,162.47,0.06]
[1754240506106,13.90477183,162.48,162.47,0.06]
[1754240511804,14.57477183,162.48,162.47,0.06]
[1754240512010,18.72464376,162.48,162.47,0.06]
[1754240513312,18.74014168,162.48,162.47,0.06]
[1754240517618,34.76410794,162.48,162.47,0.06]
[1754240517919,18.07014168,162.48,162.47,0.71]
[1754240518417,18.74014168,162.48,162.47,0.06]
[1754240518920,18.73836741,162.48,162.47,0.06]
[1754240519119,9.43233367,162.48,162.47,0.06]
[1754240519305,18.73836741,162.48,162.47,0.06]
[1754240520594,18.06836741,162.48,162.47,0.71]
[1754240520799,13.91849548,162.48,162.47,0.71]
[1754240521022,4.61246174,162.48,162.47,0.71]
[1754240521190,13.91818055,162.48,162.47,0.71]
[1754240521518,13.91818055,162.48,162.47,0.06]
[1754240522517,18.06888966,162.48,162.47,0.06]
[1754240522718,18.73888966,162.48,162.47,0.06]
[1754240523217,44.73888966,162.48,162.47,0.06]
[1754240523812,18.73888966,162.48,162.47,0.06]
[1754240526634,26.0,162.46,162.45,0.06]
[1754240526830,44.06888966,162.46,162.45,0.06]
[1754240527055,10.0,162.45,162.43,0.06]
[1754240527211,10.0,162.43,162.41,0.06]
[1754240527415,18.06888966,162.42,162.41,0.06]
[1754240527637,26.0,162.4,162.38,0.06]
[1754240527935,53.3749234,162.4,162.38,0.06]
[1754240528440,54.0449234,162.4,162.38,0.06]
[1754240528625,49.89421429,162.4,162.38,0.06]
[1754240529008,44.73355919,162.4,162.38,0.06]
[1754240529208,40.58818055,162.4,162.38,0.06]
[1754240531239,13.91818055,162.4,162.39,0.85]
[1754240531731,13.91818055,162.4,162.39,0.2]
[1754240532636,13.91818055,162.4,162.39,0.85]
[1754240533638,4.61214681,162.4,162.39,0.85]
[1754240533826,13.91818055,162.4,162.39,0.85]
[1754240538017,13.90074065,162.4,162.39,0.85]
[1754240538639,4.59470691,162.4,162.39,0.85]
[1754240538840,13.90074065,162.4,162.39,0.85]
[1754240539728,4.59470691,162.4,162.39,0.85]
[1754240539931,13.90074065,162.4,162.39,0.85]
[1754240540552,13.90074065,162.4,162.39,0.2]
[1754240542041,14.57074065,162.4,162.39,0.2]
[1754240542539,13.90074065,162.4,162.39,0.2]
[1754240542932,14.57074065,162.4,162.39,0.2]
[1754240543139,49.87677439,162.4,162.39,0.2]
[1754240543934,40.57074065,162.4,162.39,0.2]
[1754240545319,23.87677439,162.4,162.39,0.2]
[1754240546625,19.28206748,162.4,162.39,0.2]
[1754240546825,23.87468107,162.4,162.39,0.2]
[1754240548758,32.96958599,162.4,162.39,0.2]
[1754240548923,42.96958599,162.4,162.38,0.06]
[1754240549128,13.89864733,162.39,162.38,0.06]
[1754240549435,14.56864733,162.39,162.38,0.06]
[1754240549635,18.70138877,162.39,162.38,0.06]
[1754240551458,18.70066505,162.39,162.38,0.06]
[1754240560375,168.50066505,162.39,162.38,0.06]
[1754240566985,168.50662465,162.39,162.38,0.06]
[1754240567778,168.50662465,162.39,162.38,0.76]
[1754240567779,167.83662465,162.39,162.38,0.76]
[1754240567959,163.73460693,162.39,162.38,0.76]
[1754240568161,154.42857319,162.39,162.38,0.76]
[1754240568358,163.73460693,162.39,162.38,0.76]
[1754240568571,163.73460693,162.39,162.38,0.06]
[1754240568572,167.87723173,162.39,162.38,0.06]
[1754240568776,168.56723173,162.39,162.38,0.06]
[1754240570068,167.87723173,162.39,162.38,0.06]
[1754240570280,167.87723173,162.39,162.38,0.76]
[1754240571593,167.87723173,162.39,162.38,0.06]
[1754240572485,158.57119799,162.39,162.38,0.06]
[1754240572683,167.87723173,162.39,162.38,0.06]
[1754240573452,158.57119799,162.39,162.38,0.06]
[1754240573660,8.77119799,162.39,162.38,0.76]
[1754240573965,4.62857319,162.39,162.38,0.76]
[1754240576798,13.93460693,162.39,162.38,0.06]
[1754240577483,14.62460693,162.39,162.38,0.06]
[1754240577688,18.77120915,162.39,162.38,0.06]
[1754240579291,18.08120915,162.39,162.38,0.76]
[1754240579492,4.62857319,162.39,162.38,0.76]
[1754240579975,4.62857319,162.39,162.38,17.54468397]
[1754240580377,4.62857319,162.39,162.38,26.85071771]
[1754240580785,4.62857319,162.39,162.38,17.54468397]
[1754240582202,4.62857319,162.39,162.38,0.76]
[1754240582408,4.62857319,162.39,162.38,17.54468397]
[1754240582588,4.62857319,162.39,162.38,26.85071771]
[1754240582992,4.62857319,162.39,162.38,0.76]
[1754240583201,13.93460693,162.39,162.38,0.06]
[1754240584982,14.62460693,162.39,162.38,0.06]
[1754240585998,18.77331548,162.39,162.38,0.06]
[1754240594335,18.08331548,162.39,162.38,0.72]
[1754240594716,39.93460693,162.39,162.38,0.72]
[1754240594919,13.93460693,162.39,162.38,0.72]
[1754240595238,18.08426423,162.39,162.38,0.72]
[1754240595412,13.93460693,162.39,162.38,0.72]
[1754240596241,18.08436553,162.39,162.38,0.72]
[1754240598125,13.93460693,162.39,162.38,0.72]
[1754240601145,18.08479111,162.39,162.38,0.06]
[1754240602342,18.75479111,162.39,162.38,0.06]
[1754240605131,44.75479111,162.39,162.38,0.06]
[1754240606062,18.76939666,162.39,162.38,0.06]
[1754240608728,14.15621792,162.39,162.38,0.06]
[1754240608926,18.77077842,162.39,162.38,0.06]
[1754240609130,18.77095291,162.39,162.38,0.06]
[1754240610831,149.8,162.38,162.37,0.06]
[1754240611036,168.54193631,162.38,162.36,0.06]
[1754240611255,61.92193631,162.37,162.36,0.06]
[1754240612056,61.92217608,162.37,162.36,0.06]
[1754240613262,64.39321908,162.37,162.36,0.06]
[1754240613935,26.0,162.35,162.34,0.2]
[1754240614141,44.07217608,162.35,162.34,0.2]
[1754240614464,44.73906294,162.35,162.34,0.2]
[1754240617140,44.06906294,162.35,162.34,0.2]
[1754240617344,44.73906294,162.35,162.34,0.2]
[1754240617565,44.06906294,162.35,162.34,0.2]
[1754240618159,44.06906294,162.35,162.34,0.86]
[1754240618960,39.91887876,162.35,162.34,0.86]
[1754240620158,39.91887876,162.35,162.34,0.2]
[1754240620353,44.06581881,162.35,162.34,0.2]
[1754240621355,44.73581881,162.35,162.34,0.2]
[1754240621658,44.06581881,162.35,162.34,0.2]
[1754240622041,44.06581881,162.35,162.34,0.86]
[1754240622461,44.06581881,162.35,162.34,0.2]
[1754240624772,39.91887876,162.35,162.34,0.88]
[1754240625651,4.61284502,162.35,162.34,0.88]
[1754240627852,13.91887876,162.35,162.34,0.88]
[1754240629660,40.57887876,162.35,162.34,0.2]
[1754240629859,18.72795276,162.35,162.34,0.2]
[1754240630378,44.72795276,162.35,162.34,0.2]
[1754240630552,18.72795276,162.35,162.34,0.2]
[1754240630875,44.72795276,162.35,162.34,0.2]
[1754240631180,18.72795276,162.35,162.34,0.2]
[1754240631485,18.72795276,162.35,162.33,0.2]
[1754240631486,26.0,162.34,162.33,0.2]
[1754240631777,44.72795276,162.34,162.33,0.2]
[1754240631982,44.72564694,162.34,162.33,0.2]
[1754240635361,87.90564694,162.34,162.33,0.2]
[1754240637891,87.90187627,162.34,162.33,0.2]
[1754240638681,26.78468397,162.32,162.31,0.2]
[1754240638893,26.0,162.29,162.28,0.2]
[1754240639103,18.06187627,162.29,162.28,0.2]
[1754240639469,20.53398827,162.29,162.28,0.2]
[1754240640403,21.19398827,162.29,162.28,0.2]
[1754240640574,16.38491427,162.29,162.28,0.88]
[1754240640775,39.91280227,162.29,162.28,0.88]
[1754240640967,4.60676853,162.29,162.28,0.88]
[1754240641291,30.60676853,162.29,162.28,0.88]
[1754240641505,39.91280227,162.29,162.28,0.88]
[1754240641863,13.91280227,162.29,162.28,0.88]
[1754240642774,4.60676853,162.29,162.28,0.88]
[1754240644418,4.60676853,162.29,162.28,26.97071771]
[1754240644616,9.30603374,162.33,162.28,26.97071771]
[1754240644797,4.60397364,162.32,162.28,26.29071771]
[1754240644986,9.30603374,162.33,162.29,0.68]
[1754240644987,4.60397364,162.31,162.29,0.68]
[1754240645187,4.60397364,162.3,162.29,0.68]
[1754240650004,4.60397364,162.3,162.29,9.98603374]
[1754240650315,4.60397364,162.3,162.29,0.68]
[1754240654229,4.61213954,162.3,162.29,0.68]
[1754240656840,4.61213954,162.3,162.29,9.98603374]
[1754240661053,4.61213954,162.3,162.29,0.68]
[1754240664630,4.61213954,162.3,162.29,9.98603374]
[1754240664952,4.61213954,162.3,162.29,0.68]
[1754240665639,4.61457214,162.3,162.29,0.68]
[1754240666341,4.61457214,162.3,162.28,26.99071771]
[1754240666541,4.61457214,162.29,162.28,26.99071771]
[1754240668343,0.03,162.31,162.28,26.99071771]
[1754240668541,4.6143396,162.3,162.29,10.00603374]
[1754240669451,4.6143396,162.3,162.29,17.48468397]
[1754240669642,4.6143396,162.3,162.29,26.79071771]
[1754240671373,4.61440254,162.3,162.29,26.79071771]
[1754240674351,4.61699653,162.3,162.29,26.79071771]
[1754240674555,4.61699653,162.3,162.29,16.78468397]
[1754240677258,4.61692944,162.3,162.29,16.78468397]
[1754240679367,4.61692944,162.3,162.29,26.09071771]
[1754240679964,4.61692944,162.3,162.29,16.78468397]
[1754240682463,4.61692944,162.3,162.29,17.48468397]
[1754240682647,4.61692944,162.3,162.29,26.79071771]
[1754240683350,4.61692944,162.3,162.29,17.48468397]
[1754240683550,4.61692944,162.3,162.29,26.79071771]
[1754240684057,4.61692944,162.3,162.29,70.58689862]
[1754240684273,0.03,162.31,162.3,16.78468397]
[1754240684463,0.03,162.31,162.3,35.39675145]
[1754240684767,0.03,162.31,162.3,36.04675145]
[1754240684960,0.03,162.31,162.3,38.51672645]
[1754240685952,0.03,162.31,162.3,29.21069271]
[1754240687064,0.03,162.31,162.3,35.37212216]
[1754240687251,0.03,162.31,162.3,44.6781559]
[1754240688275,0.03,162.37,162.34,16.78468397]
[1754240688456,0.03,162.37,162.36,26.09071771]
[1754240688654,4.64137357,162.37,162.36,26.09071771]
[1754240698202,4.62998541,162.37,162.36,26.09071771]
[1754240698402,0.03,162.37,162.36,26.09071771]
[1754240701976,0.03,162.37,162.36,53.35663296]
[1754240702503,0.03,162.37,162.36,55.82584496]
[1754240707972,0.03,162.37,162.36,77.08499746]
[1754240708296,0.03,162.38,162.36,51.08499746]
[1754240708505,0.03,162.38,162.37,69.88071771]
[1754240708885,0.03,162.38,162.37,84.98071771]
[1754240709296,0.03,162.38,162.37,91.13949088]
[1754240710991,0.03,162.39,162.38,16.78468397]
[1754240711192,0.03,162.41,162.4,61.39675145]
[1754240711504,0.03,162.41,162.4,105.15251499]
[1754240711698,0.03,162.41,162.4,105.80251499]
[1754240712683,0.03,162.41,162.4,114.42860045]
[1754240714096,0.03,162.41,162.4,129.52860045]
[1754240714314,0.03,162.41,162.4,128.91283691]
[1754240714503,0.1,162.48,162.45,16.78468397]
[1754240714692,0.1,162.48,162.47,26.09071771]
[1754240715007,0.1,162.48,162.47,69.21071771]
[1754240715008,0.82,162.48,162.47,69.21071771]
[1754240715406,0.82,162.48,162.47,59.90468397]
[1754240715596,0.82,162.48,162.47,69.21071771]
[1754240722414,0.1,162.48,162.47,69.21071771]
[1754240723113,0.1,162.48,162.47,69.88071771]
[1754240723817,0.1,162.48,162.47,72.34825371]
[1754240725308,0.1,162.48,162.47,87.44825371]
[1754240725500,0.1,162.48,162.47,88.06375195]
[1754240728137,0.1,162.48,162.47,94.2187344]
[1754240728312,0.03,162.49,162.47,94.2187344]
[1754240728636,0.03,162.49,162.48,26.76071771]
[1754240730140,0.03,162.49,162.48,32.91532135]
[1754240731434,0.03,162.51,162.49,16.78468397]
[1754240731739,0.03,162.51,162.5,79.11213606]
[1754240731927,0.03,162.51,162.5,79.78213606]
[1754240733343,0.1,162.53,162.52,26.0]
[1754240733542,0.1,162.53,162.52,110.90602659]
[1754240733929,0.1,162.53,162.52,111.57602659]
[1754240735038,0.1,162.53,162.52,101.59999285]
[1754240735242,0.82,162.53,162.52,110.90602659]
[1754240735626,0.1,162.53,162.52,110.90602659]
[1754240735948,0.1,162.53,162.52,113.37265059]
[1754240736443,0.1,162.53,162.52,114.04265059]
[1754240737450,0.1,162.53,162.52,113.37265059]
[1754240738646,0.82,162.53,162.52,95.80602659]
[1754240738846,0.82,162.53,162.52,98.27280159]
[1754240739048,0.82,162.53,162.52,69.80602659]
[1754240741227,0.82,162.53,162.52,60.47999285]
[1754240741427,0.82,162.53,162.52,59.86468397]
[1754240745122,0.82,162.53,162.52,69.17071771]
[1754240745928,0.1,162.53,162.52,69.82071771]
[1754240746157,0.1,162.53,162.52,84.27071771]
[1754240746358,0.1,162.53,162.52,86.73749271]
[1754240746526,0.1,162.53,162.52,88.00280159]
[1754240746856,0.1,162.53,162.52,114.00280159]
[1754240748231,0.1,162.53,162.52,72.90280159]
[1754240752274,0.1,162.53,162.52,94.15589044]
[1754240752642,0.1,162.53,162.52,88.00280159]
[1754240753349,0.1,162.53,162.52,72.90280159]
[1754240755245,0.1,162.53,162.52,34.96676785]
[1754240755476,0.1,162.53,162.52,93.54058156]
[1754240755769,0.1,162.53,162.52,88.00280159]
[1754240757258,0.1,162.53,162.52,87.35280159]
[1754240757857,0.1,162.53,162.52,88.00280159]
[1754240760673,0.03,162.56,162.55,42.78468397]
[1754240760843,0.03,162.56,162.55,95.78591303]
[1754240761048,0.03,162.56,162.55,96.43591303]
[1754240761248,0.03,162.56,162.55,98.90177603]
[1754240762170,0.03,162.56,162.55,98.25177603]
[1754240763379,0.74,162.56,162.55,98.25177603]
[1754240763890,0.03,162.56,162.55,72.25177603]
[1754240764188,0.03,162.56,162.55,70.43591303]
[1754240764368,0.03,162.56,162.55,72.25192903]
[1754240764554,0.03,162.56,162.55,29.17192903]
[1754240764754,0.03,162.56,162.55,72.25192903]
[1754240764990,0.74,162.56,162.55,29.17192903]
[1754240765181,0.74,162.56,162.55,72.27192903]
[1754240765991,0.03,162.56,162.55,72.27192903]
[1754240767757,0.03,162.56,162.55,88.02192903]
[1754240771380,0.03,162.56,162.55,87.37192903]
[1754240771898,0.03,162.56,162.55,88.02192903]
[1754240773172,0.1,162.57,162.56,31.85468397]
[1754240773379,0.1,162.57,162.56,41.16071771]
[1754240773798,0.1,162.57,162.56,43.62642971]
[1754240774481,0.1,162.57,162.56,44.24158719]
[1754240775003,0.1,162.57,162.56,44.93158719]
[1754240775401,0.7,162.68,162.6,42.78468397]
[1754240775706,0.7,162.71,162.7,16.78468397]
[1754240775909,0.7,162.71,162.7,69.82534585]
[1754240777689,0.7,162.71,162.7,69.21071771]
[1754240777906,0.7,162.71,162.7,59.90468397]
[1754240779812,0.7,162.71,162.7,43.12]
[1754240779988,10.00603374,162.71,162.7,43.12]
[1754240782390,10.10603374,162.73,162.7,43.12]
[1754240782597,0.7,162.72,162.7,43.12]
[1754240782819,10.00603374,162.72,162.7,43.12]
[1754240783005,0.7,162.71,162.7,59.90468397]
[1754240785114,10.00603374,162.71,162.7,43.12]
[1754240789722,10.00603374,162.71,162.69,43.12]
[1754240789903,10.00603374,162.7,162.69,43.12]
[1754240790728,19.31206748,162.7,162.68,43.12]
[1754240790940,10.00603374,162.69,162.68,43.12]
[1754240791145,10.00603374,162.69,162.66,0.06]
[1754240791341,9.30603374,162.67,162.66,0.06]
[1754240791715,10.00603374,162.67,162.66,0.06]
[1754240792023,10.00603374,162.67,162.64,0.06]
[1754240792210,9.30603374,162.65,162.64,0.06]
[1754240792535,9.30603374,162.65,162.6,44.64869035]
[1754240792536,9.30603374,162.65,162.6,87.80869035]
[1754240792831,9.30603374,162.61,162.6,87.80869035]
[1754240793030,10.00603374,162.61,162.6,87.80869035]
[1754240793658,10.00603374,162.61,162.6,44.64869035]
[1754240794443,10.00603374,162.61,162.58,43.16]
[1754240794738,9.30603374,162.59,162.58,43.16]
[1754240794943,10.00603374,162.59,162.58,43.16]
[1754240796317,10.00603374,162.59,162.54,16.78468397]
[1754240796533,0.7,162.58,162.55,43.16]
[1754240796839,9.30603374,162.56,162.55,43.16]
[1754240798026,0.7,162.61,162.55,60.63468397]
[1754240798340,9.30603374,162.57,162.56,0.69]
[1754240799839,0.7,162.61,162.56,0.69]
[1754240800141,9.30603374,162.57,162.55,59.94468397]
[1754240800554,9.30603374,162.57,162.56,0.69]
[1754240800768,6.14436633,162.76,162.57,16.78468397]
[1754240800769,9.30603374,162.59,162.57,16.78468397]
[1754240800950,9.30603374,162.59,162.58,43.89]
[1754240801666,9.30603374,162.6,162.58,43.89]
[1754240802139,26.0,162.66,162.59,0.69]
[1754240802345,0.7,162.65,162.6,60.00468397]
[1754240802558,9.30603374,162.62,162.61,0.69]
[1754240802861,10.00603374,162.62,162.6,43.28]
[1754240803065,10.00603374,162.61,162.6,43.28]
[1754240804056,9.30603374,162.61,162.6,43.98]
[1754240804441,9.30603374,162.61,162.6,43.28]
[1754240805045,0.67,162.63,162.6,43.98]
[1754240805245,9.30603374,162.61,162.6,43.98]
[1754240805857,9.30603374,162.62,162.6,43.98]
[1754240806058,9.30603374,162.61,162.58,0.7]
[1754240806250,9.30603374,162.59,162.58,60.08468397]
[1754240807649,9.30603374,162.59,162.58,43.3]
[1754240807849,9.97603374,162.59,162.58,43.32]
[1754240809063,9.97603374,162.59,162.55,0.76]
[1754240809264,0.67,162.59,162.56,43.34]
[1754240809439,9.30603374,162.57,162.56,43.34]
[1754240812179,9.97603374,162.57,162.56,43.34]
[1754240812671,9.30603374,162.57,162.56,43.34]
[1754240814467,9.97603374,162.57,162.56,43.34]
[1754240816477,9.30603374,162.57,162.56,43.34]
[1754240817748,0.67,162.58,162.56,43.34]
[1754240818076,9.97603374,162.57,162.56,43.34]
[1754240818383,9.97603374,162.57,162.55,0.06]
[1754240818569,9.97603374,162.56,162.55,0.06]
[1754240820983,9.30603374,162.56,162.55,0.06]
[1754240825366,9.97603374,162.56,162.55,0.06]
[1754240826186,9.30603374,162.56,162.55,0.06]
[1754240831593,9.97603374,162.56,162.55,0.06]
[1754240832584,9.30603374,162.56,162.55,0.06]
[1754240833084,0.67,162.57,162.55,0.06]
[1754240833413,9.30603374,162.56,162.55,0.06]
[1754240836406,9.30603374,162.6,162.55,10.03603374]
[1754240836580,9.30603374,162.6,162.56,43.22]
[1754240836785,9.30603374,162.6,162.57,0.67]
[1754240837006,9.30603374,162.59,162.57,0.67]
[1754240839306,9.30603374,162.6,162.57,0.67]
[1754240840224,10.02603374,162.6,162.57,0.67]
[1754240841411,9.30603374,162.6,162.56,43.89]
[1754240841617,0.72,162.59,162.56,43.89]
[1754240842722,10.02603374,162.6,162.56,43.89]
[1754240843098,9.30603374,162.58,162.56,43.22]
[1754240843603,9.30603374,162.58,162.56,43.89]
[1754240844112,0.72,162.59,162.56,43.89]
[1754240844308,9.30603374,162.58,162.56,43.89]
[1754240845104,9.30603374,162.59,162.56,43.89]
[1754240845300,9.30603374,162.59,162.57,0.67]
[1754240845518,9.30603374,162.59,162.58,0.67]
[1754240845830,9.30603374,162.6,162.58,0.67]
[1754240847536,10.02603374,162.59,162.56,43.89]
[1754240848032,0.72,162.59,162.56,43.89]
[1754240848345,9.30603374,162.59,162.57,0.67]
[1754240849345,9.30603374,162.58,162.57,0.67]
[1754240850438,9.30603374,162.58,162.56,43.22]
[1754240850622,9.30603374,162.58,162.56,43.89]
[1754240852020,9.30603374,162.58,162.56,43.95]
[1754240852938,0.72,162.6,162.56,43.95]
[1754240853139,9.30603374,162.58,162.56,43.95]
[1754240853357,9.30603374,162.57,162.56,43.28]
[1754240853521,10.02603374,162.57,162.56,43.28]
[1754240854115,10.02603374,162.57,162.56,0.06]
[1754240854315,5.33169819,162.57,162.56,0.06]
[1754240854631,14.63773193,162.57,162.56,0.06]
[1754240856244,14.63791434,162.57,162.56,0.06]
[1754240856640,14.6378498,162.57,162.56,0.06]
[1754240860458,14.6378498,162.57,162.55,0.06]
[1754240860459,18.78890198,162.57,162.55,0.06]
[1754240860630,18.78890198,162.56,162.55,0.06]
[1754240861050,26.0,162.54,162.53,0.06]
[1754240861357,44.06828014,162.54,162.53,0.06]
[1754240861544,44.78828014,162.54,162.53,0.06]
[1754240862742,44.78612412,162.54,162.53,0.06]
[1754240864038,44.06612412,162.54,162.53,0.06]
[1754240864767,44.05684365,162.54,162.53,0.06]
[1754240865468,18.05684365,162.54,162.53,0.06]
[1754240865854,13.90856933,162.54,162.53,0.06]
[1754240868050,13.90856933,162.54,162.53,0.75]
[1754240868355,13.90856933,162.54,162.53,0.06]
[1754240868544,13.90856933,162.54,162.53,0.75]
[1754240869046,13.90856933,162.54,162.53,0.06]
[1754240869773,13.90856933,162.54,162.53,0.75]
[1754240871655,4.60253559,162.54,162.53,0.75]
[1754240872856,4.60253559,162.54,162.53,0.06]
[1754240872857,13.90856933,162.54,162.53,0.06]
[1754240873153,14.61856933,162.54,162.53,0.06]
[1754240873566,13.90856933,162.54,162.53,0.06]
[1754240873861,14.61856933,162.54,162.53,0.06]
[1754240883586,14.61856933,162.54,162.51,0.06]
[1754240883587,44.75187033,162.54,162.51,0.06]
[1754240883755,43.15,162.55,162.51,0.06]
[1754240883756,35.30603374,162.52,162.51,0.06]
[1754240883956,39.90856933,162.52,162.51,0.06]
[1754240884181,44.04256927,162.52,162.51,0.06]
[1754240884386,40.61856933,162.52,162.51,0.06]
[1754240884650,44.75163435,162.52,162.51,0.06]
[1754240886573,97.17766809,162.52,162.5,0.06]
[1754240886771,23.92460307,162.51,162.5,0.06]
[1754240890099,14.61856933,162.51,162.5,0.06]
[1754240891471,18.74914231,162.51,162.5,0.06]
[1754240892291,28.05517605,162.51,162.5,0.06]
[1754240895585,28.05517605,162.51,162.49,0.2]
[1754240895798,93.03460307,162.5,162.49,0.2]
[1754240896012,39.90856933,162.5,162.49,0.2]
[1754240896201,13.90856933,162.5,162.49,0.2]
[1754240896592,13.90856933,162.5,162.49,0.87]
[1754240896805,13.90856933,162.5,162.49,0.2]
[1754240897511,4.60253559,162.5,162.49,0.87]
[1754240897711,3.16253559,162.5,162.49,26.96071771]
[1754240897893,3.08253559,162.5,162.49,26.96071771]
[1754240898098,3.08253559,162.5,162.49,27.57614019]
[1754240898294,4.13396355,162.54,162.49,26.96071771]
[1754240898488,4.13396355,162.54,162.5,9.30603374]
[1754240898699,9.33603374,162.55,162.5,9.30603374]
[1754240898910,9.30603374,162.54,162.49,26.29071771]
[1754240899217,8.80603374,162.54,162.49,26.29071771]
[1754240901306,8.80603374,162.54,162.49,16.98468397]
[1754240901616,8.80603374,162.54,162.49,26.29071771]
[1754240902918,9.33603374,162.55,162.5,26.09071771]
[1754240903217,9.33603374,162.55,162.51,9.30603374]
[1754240903590,0.03,162.55,162.51,9.30603374]
[1754240903818,0.03,162.55,162.49,32.05468397]
[1754240904115,9.33603374,162.55,162.5,9.30603374]
[1754240905593,9.30603374,162.54,162.49,41.36071771]
[1754240907624,9.30603374,162.54,162.49,84.48071771]
[1754240907802,9.30603374,162.54,162.5,9.30603374]
[1754240908205,9.30603374,162.54,162.49,84.48071771]
[1754240908412,0.03,162.55,162.53,9.30603374]
[1754240908621,0.03,162.55,162.54,9.30603374]
[1754240909022,0.03,162.55,162.54,26.09071771]
[1754240909401,0.03,162.55,162.54,69.21071771]
[1754240913735,0.03,162.55,162.54,59.90468397]
[1754240918438,0.03,162.55,162.54,69.21071771]
[1754240920832,10.01603374,162.55,162.53,0.06]